[Event "*** Titled Tuesday Blitz"]
[Site "Chess.com"]
[Date "2020.05.19"]
[Round "3"]
[White "Goryachkina"]
[Black "Saxar85"]
[Result "1-0"]
[WhiteElo "2641"]
[BlackElo "2698"]
[TimeControl "180+1"]
[EndTime "12:28:37 PDT"]
[Termination "Goryachkina won by resignation"]

1. d4 {[%clk 0:03:00.9]} 1... d6 {[%clk 0:02:59.7]} 2. Nf3 {[%clk 0:02:56.1]}
2... Nf6 {[%clk 0:02:58.3]} 3. c4 {[%clk 0:02:55.1]} 3... g6 {[%clk 0:02:58.1]}
4. Nc3 {[%clk 0:02:55.3]} 4... Bf5 {[%clk 0:02:57.9]} 5. Nh4 {[%clk 0:02:52.7]}
5... Bd7 {[%clk 0:02:57]} 6. e4 {[%clk 0:02:52]} 6... e5 {[%clk 0:02:56.9]} 7.
Nf3 {[%clk 0:02:51.8]} 7... Nc6 {[%clk 0:02:56.6]} 8. d5 {[%clk 0:02:49.3]} 8...
Ne7 {[%clk 0:02:56.4]} 9. h3 {[%clk 0:02:43]} 9... Bg7 {[%clk 0:02:56.2]} 10.
Be3 {[%clk 0:02:42.1]} 10... O-O {[%clk 0:02:54]} 11. g4 {[%clk 0:02:35.8]}
11... a6 {[%clk 0:02:53.7]} 12. Nd2 {[%clk 0:02:30.7]} 12... b5 {[%clk
0:02:47.7]} 13. cxb5 {[%clk 0:02:24.9]} 13... axb5 {[%clk 0:02:47.2]} 14. Bxb5
{[%clk 0:02:24.7]} 14... c6 {[%clk 0:02:47.1]} 15. dxc6 {[%clk 0:02:15.4]} 15...
Nxc6 {[%clk 0:02:46.8]} 16. Nc4 {[%clk 0:02:10.6]} 16... Nd4 {[%clk 0:02:46.4]}
17. Bxd7 {[%clk 0:01:45.9]} 17... Nxd7 {[%clk 0:02:45.6]} 18. O-O {[%clk
0:01:13.6]} 18... Nc5 {[%clk 0:02:42]} 19. b4 {[%clk 0:01:05]} 19... Nce6 {[%clk
0:02:38.1]} 20. Nd5 {[%clk 0:01:03.1]} 20... f5 {[%clk 0:02:36.9]} 21. exf5
{[%clk 0:00:35.7]} 21... gxf5 {[%clk 0:02:35.9]} 22. f4 {[%clk 0:00:32.5]} 22...
Qh4 {[%clk 0:02:20.5]} 23. Kg2 {[%clk 0:00:30.2]} 23... fxg4 {[%clk 0:01:17]}
24. Qxg4 {[%clk 0:00:27.6]} 24... Qxg4+ {[%clk 0:01:16.8]} 25. hxg4 {[%clk
0:00:27.6]} 25... Nc2 {[%clk 0:01:16.9]} 26. f5 {[%clk 0:00:22]} 26... Nf4+
{[%clk 0:01:02.7]} 27. Bxf4 {[%clk 0:00:18.7]} 27... exf4 {[%clk 0:01:02.9]} 28.
Rac1 {[%clk 0:00:17.9]} 28... Rxa2 {[%clk 0:01:01.9]} 29. Rf2 {[%clk 0:00:17.6]}
29... Bd4 {[%clk 0:00:59.3]} 30. Rfxc2 {[%clk 0:00:16.8]} 30... Rfa8 {[%clk
0:00:46.7]} 31. Rxa2 {[%clk 0:00:15.2]} 31... Rxa2+ {[%clk 0:00:46.1]} 32. Kf3
{[%clk 0:00:15.1]} 32... Rf2+ {[%clk 0:00:45.5]} 33. Ke4 {[%clk 0:00:15.3]}
33... Ba7 {[%clk 0:00:44.2]} 34. Nxf4 {[%clk 0:00:14.7]} 34... Kf7 {[%clk
0:00:30.2]} 35. Nxd6+ {[%clk 0:00:14.3]} 35... Kf6 {[%clk 0:00:28.6]} 36. Rc7
{[%clk 0:00:11.8]} 1-0

[Event "*** Titled Tuesday Blitz"]
[Site "Chess.com"]
[Date "2020.05.19"]
[Round "3"]
[White "Shivagami"]
[Black "SamuelGhimpu2003"]
[Result "0-1"]
[WhiteElo "2188"]
[BlackElo "2600"]
[TimeControl "180+1"]
[EndTime "12:28:38 PDT"]
[Termination "SamuelGhimpu2003 won by resignation"]

1. d4 {[%clk 0:03:00.9]} 1... Nf6 {[%clk 0:02:57.9]} 2. c4 {[%clk 0:03:01.1]}
2... g6 {[%clk 0:02:56.7]} 3. Nc3 {[%clk 0:03:01]} 3... d5 {[%clk 0:02:46.8]} 4.
cxd5 {[%clk 0:02:59.9]} 4... Nxd5 {[%clk 0:02:47.7]} 5. Bd2 {[%clk 0:03:00]}
5... Bg7 {[%clk 0:02:47.3]} 6. e4 {[%clk 0:02:59.4]} 6... Nb6 {[%clk 0:02:47.9]}
7. Be3 {[%clk 0:02:58.9]} 7... O-O {[%clk 0:02:48.8]} 8. Be2 {[%clk 0:02:54]}
8... f5 {[%clk 0:02:48.2]} 9. exf5 {[%clk 0:02:45.4]} 9... Bxf5 {[%clk
0:02:49.1]} 10. Nf3 {[%clk 0:02:45.3]} 10... Qd6 {[%clk 0:02:44]} 11. O-O {[%clk
0:02:34.5]} 11... Nc6 {[%clk 0:02:41]} 12. Nb5 {[%clk 0:02:27.5]} 12... Qd7
{[%clk 0:02:39.5]} 13. Qd2 {[%clk 0:01:40.7]} 13... Rad8 {[%clk 0:02:37.1]} 14.
Bh6 {[%clk 0:01:34.6]} 14... a6 {[%clk 0:02:19.1]} 15. Bxg7 {[%clk 0:01:33.8]}
15... Kxg7 {[%clk 0:02:20]} 16. Nc3 {[%clk 0:01:24.4]} 16... Nxd4 {[%clk
0:02:19.5]} 17. Nxd4 {[%clk 0:01:23.6]} 17... Qxd4 {[%clk 0:02:20.4]} 18. Qg5
{[%clk 0:01:19.5]} 18... Qf6 {[%clk 0:02:17.6]} 19. Qg3 {[%clk 0:01:16.7]} 19...
Rd7 {[%clk 0:02:11.3]} 20. Rad1 {[%clk 0:01:13.4]} 20... Rfd8 {[%clk 0:02:10.5]}
21. Rxd7 {[%clk 0:01:08.8]} 21... Rxd7 {[%clk 0:02:11.4]} 22. Rd1 {[%clk
0:01:09.4]} 22... Rxd1+ {[%clk 0:02:03.8]} 23. Bxd1 {[%clk 0:01:05.3]} 23... Qd6
{[%clk 0:02:04.7]} 24. Qe3 {[%clk 0:00:50.5]} 24... Nc4 {[%clk 0:02:00.9]} 25.
Qc1 {[%clk 0:00:43]} 25... Qd2 {[%clk 0:01:59.8]} 26. Qxd2 {[%clk 0:00:40.1]}
26... Nxd2 {[%clk 0:02:00.7]} 27. f3 {[%clk 0:00:37.2]} 27... Nc4 {[%clk
0:01:58]} 28. b3 {[%clk 0:00:37]} 28... Nd6 {[%clk 0:01:57.8]} 29. Kf2 {[%clk
0:00:36.9]} 29... e5 {[%clk 0:01:51.1]} 30. Ke3 {[%clk 0:00:27.4]} 30... c6
{[%clk 0:01:50.7]} 31. Na4 {[%clk 0:00:24.1]} 31... Kf6 {[%clk 0:01:45]} 32. Nc5
{[%clk 0:00:19.4]} 32... a5 {[%clk 0:01:44.8]} 33. Be2 {[%clk 0:00:14.3]} 33...
g5 {[%clk 0:01:40.5]} 34. g4 {[%clk 0:00:12.5]} 34... Bc8 {[%clk 0:01:39]} 35.
Bd3 {[%clk 0:00:12.9]} 35... h6 {[%clk 0:01:37.1]} 36. Bc2 {[%clk 0:00:08.1]}
36... Ke7 {[%clk 0:01:35.3]} 37. Ne4 {[%clk 0:00:08.2]} 37... Nxe4 {[%clk
0:01:34.6]} 38. Kxe4 {[%clk 0:00:08.3]} 38... Kd6 {[%clk 0:01:33.2]} 39. Bd3
{[%clk 0:00:08]} 39... Be6 {[%clk 0:01:32.3]} 40. Be2 {[%clk 0:00:07.6]} 40...
b5 {[%clk 0:01:25.1]} 41. Bd1 {[%clk 0:00:06.7]} 41... b4 {[%clk 0:01:20.2]} 42.
Be2 {[%clk 0:00:06.8]} 42... a4 {[%clk 0:01:17.4]} 43. Bd1 {[%clk 0:00:05.3]}
43... c5 {[%clk 0:01:16.9]} 44. Be2 {[%clk 0:00:02.1]} 44... axb3 {[%clk
0:01:15.6]} 45. axb3 {[%clk 0:00:02.2]} 45... Bxb3 {[%clk 0:01:16.5]} 46. Kf5
{[%clk 0:00:02.7]} 46... Bc2+ {[%clk 0:01:15]} 47. Kf6 {[%clk 0:00:02.7]} 47...
b3 {[%clk 0:01:15.9]} 0-1

[Event "*** Titled Tuesday Blitz"]
[Site "Chess.com"]
[Date "2020.05.19"]
[Round "3"]
[White "crossingthestreet"]
[Black "TV27"]
[Result "1-0"]
[WhiteElo "2322"]
[BlackElo "2096"]
[TimeControl "180+1"]
[EndTime "12:28:40 PDT"]
[Termination "crossingthestreet won by checkmate"]

1. c4 {[%clk 0:03:00.9]} 1... f5 {[%clk 0:02:57.4]} 2. Nc3 {[%clk 0:03:00.8]}
2... Nf6 {[%clk 0:02:57.6]} 3. d4 {[%clk 0:03:01.2]} 3... d6 {[%clk 0:02:52.7]}
4. Nf3 {[%clk 0:02:59.1]} 4... g6 {[%clk 0:02:51.9]} 5. g3 {[%clk 0:02:59.4]}
5... Bg7 {[%clk 0:02:51.8]} 6. Bg2 {[%clk 0:03:00]} 6... O-O {[%clk 0:02:51.7]}
7. O-O {[%clk 0:03:00.6]} 7... c6 {[%clk 0:02:50.3]} 8. b3 {[%clk 0:03:00.7]}
8... a5 {[%clk 0:02:48.8]} 9. Bb2 {[%clk 0:03:00.3]} 9... Bd7 {[%clk 0:02:48.7]}
10. Re1 {[%clk 0:02:49.3]} 10... Ne4 {[%clk 0:02:43.8]} 11. Nxe4 {[%clk
0:02:19.1]} 11... fxe4 {[%clk 0:02:40.5]} 12. Nd2 {[%clk 0:02:18.9]} 12... d5
{[%clk 0:02:39.9]} 13. f3 {[%clk 0:02:19.1]} 13... e3 {[%clk 0:02:30.8]} 14. Nf1
{[%clk 0:02:18.6]} 14... Bh6 {[%clk 0:02:16.6]} 15. Bc1 {[%clk 0:02:00.7]} 15...
dxc4 {[%clk 0:02:14.2]} 16. bxc4 {[%clk 0:02:00.1]} 16... Be6 {[%clk 0:02:14.1]}
17. Qd3 {[%clk 0:01:54.7]} 17... Bf5 {[%clk 0:02:10.5]} 18. Qc3 {[%clk
0:01:52.2]} 18... c5 {[%clk 0:01:57.8]} 19. Bxe3 {[%clk 0:00:47.5]} 19... Bxe3+
{[%clk 0:01:52.8]} 20. Qxe3 {[%clk 0:00:48.4]} 20... cxd4 {[%clk 0:01:47.8]} 21.
Qh6 {[%clk 0:00:48.2]} 21... Na6 {[%clk 0:01:33.7]} 22. e4 {[%clk 0:00:47.9]}
22... Be6 {[%clk 0:01:26.8]} 23. Nd2 {[%clk 0:00:47]} 23... d3 {[%clk
0:01:20.3]} 24. Kh1 {[%clk 0:00:43.8]} 24... Qd4 {[%clk 0:01:17.7]} 25. e5
{[%clk 0:00:39.9]} 25... Bxc4 {[%clk 0:01:02.1]} 26. Rac1 {[%clk 0:00:39.4]}
26... Bd5 {[%clk 0:01:00.1]} 27. Ne4 {[%clk 0:00:36.9]} 27... Nb4 {[%clk
0:00:49.7]} 28. Ng5 {[%clk 0:00:34.4]} 28... Rf7 {[%clk 0:00:44.2]} 29. e6
{[%clk 0:00:34.6]} 29... Rg7 {[%clk 0:00:43.6]} 30. Rc7 {[%clk 0:00:29.6]} 30...
d2 {[%clk 0:00:41.4]} 31. Rd1 {[%clk 0:00:28.9]} 31... Nd3 {[%clk 0:00:38.3]}
32. Nh3 {[%clk 0:00:22.5]} 32... g5 {[%clk 0:00:30.2]} 33. Rxd2 {[%clk
0:00:16.4]} 33... Qa1+ {[%clk 0:00:29]} 34. Ng1 {[%clk 0:00:14.8]} 34... Qe1
{[%clk 0:00:27.6]} 35. Rxd3 {[%clk 0:00:14.4]} 35... Bc6 {[%clk 0:00:26.1]} 36.
Rc3 {[%clk 0:00:09.3]} 36... Rd8 {[%clk 0:00:24.2]} 37. Rc2 {[%clk 0:00:07.9]}
37... Rd1 {[%clk 0:00:23.1]} 38. Rc8+ {[%clk 0:00:06.2]} 38... Be8 {[%clk
0:00:22]} 39. Rxe8# {[%clk 0:00:06.4]} 1-0

[Event "*** Titled Tuesday Blitz"]
[Site "Chess.com"]
[Date "2020.05.19"]
[Round "3"]
[White "Titus369"]
[Black "icychess54"]
[Result "0-1"]
[WhiteElo "2490"]
[BlackElo "2268"]
[TimeControl "180+1"]
[EndTime "12:28:41 PDT"]
[Termination "icychess54 won by checkmate"]

1. e4 {[%clk 0:03:00.9]} 1... c5 {[%clk 0:03:00.1]} 2. Nf3 {[%clk 0:02:59.5]}
2... d6 {[%clk 0:03:00.4]} 3. d4 {[%clk 0:02:59.9]} 3... cxd4 {[%clk 0:03:01.2]}
4. Nxd4 {[%clk 0:03:00.8]} 4... Nf6 {[%clk 0:03:01.1]} 5. Nc3 {[%clk 0:03:01.4]}
5... Nc6 {[%clk 0:03:01.6]} 6. Bg5 {[%clk 0:02:57.6]} 6... e6 {[%clk 0:03:01.4]}
7. Qd2 {[%clk 0:02:54.7]} 7... h6 {[%clk 0:03:01.5]} 8. Be3 {[%clk 0:02:49.2]}
8... Ng4 {[%clk 0:02:59.9]} 9. Bb5 {[%clk 0:02:48]} 9... Bd7 {[%clk 0:02:54.5]}
10. O-O-O {[%clk 0:02:42.4]} 10... Nxe3 {[%clk 0:02:52.1]} 11. Qxe3 {[%clk
0:02:42.2]} 11... Be7 {[%clk 0:02:50.2]} 12. f4 {[%clk 0:02:39.5]} 12... O-O
{[%clk 0:02:47.5]} 13. Kb1 {[%clk 0:02:29.3]} 13... a6 {[%clk 0:02:45.2]} 14.
Be2 {[%clk 0:02:26.1]} 14... b5 {[%clk 0:02:44.1]} 15. Bf3 {[%clk 0:02:23.2]}
15... b4 {[%clk 0:02:42.1]} 16. Nce2 {[%clk 0:02:22.9]} 16... Qc7 {[%clk
0:02:39]} 17. e5 {[%clk 0:02:12.8]} 17... dxe5 {[%clk 0:02:14.2]} 18. fxe5
{[%clk 0:02:03.6]} 18... Rac8 {[%clk 0:02:08.7]} 19. Nxc6 {[%clk 0:01:55.3]}
19... Bxc6 {[%clk 0:02:08.6]} 20. Nd4 {[%clk 0:01:53.9]} 20... Bxf3 {[%clk
0:01:57.8]} 21. gxf3 {[%clk 0:01:50.4]} 21... Bc5 {[%clk 0:01:49]} 22. Qe2
{[%clk 0:01:47.6]} 22... Rfd8 {[%clk 0:01:44.9]} 23. Nb3 {[%clk 0:01:47.2]}
23... a5 {[%clk 0:01:17.9]} 24. Qc4 {[%clk 0:01:38.6]} 24... Bb6 {[%clk
0:01:09.6]} 25. Qxc7 {[%clk 0:01:36.9]} 25... Bxc7 {[%clk 0:01:09.6]} 26. f4
{[%clk 0:01:35.6]} 26... Bb6 {[%clk 0:01:08.6]} 27. c3 {[%clk 0:01:27.8]} 27...
Rxd1+ {[%clk 0:00:56.7]} 28. Rxd1 {[%clk 0:01:28.7]} 28... bxc3 {[%clk
0:00:57.2]} 29. Rc1 {[%clk 0:01:28.3]} 29... a4 {[%clk 0:00:44.9]} 30. Na1
{[%clk 0:01:24.1]} 30... Be3 {[%clk 0:00:43.8]} 31. Rxc3 {[%clk 0:01:23.8]}
31... Rxc3 {[%clk 0:00:42.9]} 32. bxc3 {[%clk 0:01:24.7]} 32... Bxf4 {[%clk
0:00:42.9]} 33. Kc2 {[%clk 0:01:24.9]} 33... Bxh2 {[%clk 0:00:42]} 34. Kd3
{[%clk 0:01:24.4]} 34... Bxe5 {[%clk 0:00:41.8]} 35. Nc2 {[%clk 0:01:24.5]}
35... h5 {[%clk 0:00:39.3]} 36. c4 {[%clk 0:01:23.2]} 36... h4 {[%clk
0:00:38.2]} 37. Ke4 {[%clk 0:01:21.4]} 37... h3 {[%clk 0:00:34.5]} 38. Kf3
{[%clk 0:01:17.5]} 38... g5 {[%clk 0:00:33]} 39. Ne3 {[%clk 0:01:14.7]} 39... f5
{[%clk 0:00:29.4]} 40. c5 {[%clk 0:01:14.7]} 40... g4+ {[%clk 0:00:27.9]} 41.
Kf2 {[%clk 0:01:13.7]} 41... Bd4 {[%clk 0:00:20.5]} 42. c6 {[%clk 0:01:13.9]}
42... Bb6 {[%clk 0:00:20.9]} 43. Kf1 {[%clk 0:01:11.6]} 43... Kf8 {[%clk
0:00:18.7]} 44. Nc4 {[%clk 0:01:10]} 44... Bc7 {[%clk 0:00:18]} 45. Na3 {[%clk
0:01:10.5]} 45... Ke7 {[%clk 0:00:17.9]} 46. Nb5 {[%clk 0:01:10.8]} 46... Kd8
{[%clk 0:00:17.2]} 47. Nd4 {[%clk 0:01:11.4]} 47... Ke7 {[%clk 0:00:16.3]} 48.
Nb5 {[%clk 0:01:11.6]} 48... Bb6 {[%clk 0:00:15.2]} 49. c7 {[%clk 0:01:10.1]}
49... Kd7 {[%clk 0:00:14.3]} 50. Nc3 {[%clk 0:01:04.6]} 50... a3 {[%clk
0:00:14.1]} 51. Na4 {[%clk 0:01:05.5]} 51... Bxc7 {[%clk 0:00:14]} 52. Nc5+
{[%clk 0:01:05.4]} 52... Ke7 {[%clk 0:00:13.6]} 53. Nd3 {[%clk 0:01:04.6]} 53...
g3 {[%clk 0:00:13.6]} 54. Kg1 {[%clk 0:01:00.9]} 54... Bb6+ {[%clk 0:00:12.5]}
55. Kh1 {[%clk 0:00:56.8]} 55... g2+ {[%clk 0:00:12.9]} 56. Kh2 {[%clk
0:00:57.4]} 56... g1=Q+ {[%clk 0:00:13.7]} 57. Kxh3 {[%clk 0:00:58.3]} 57...
Qg4+ {[%clk 0:00:13.7]} 58. Kh2 {[%clk 0:00:58.5]} 58... Qh4+ {[%clk 0:00:13.4]}
59. Kg2 {[%clk 0:00:58.5]} 59... Qe4+ {[%clk 0:00:13.4]} 60. Kh2 {[%clk
0:00:58.8]} 60... Qxd3 {[%clk 0:00:13.9]} 61. Kh1 {[%clk 0:00:57.8]} 61... Qh3#
{[%clk 0:00:12.9]} 0-1

[Event "*** Titled Tuesday Blitz"]
[Site "Chess.com"]
[Date "2020.05.19"]
[Round "3"]
[White "djano"]
[Black "RovenVogel"]
[Result "1-0"]
[WhiteElo "2455"]
[BlackElo "2719"]
[TimeControl "180+1"]
[EndTime "12:28:43 PDT"]
[Termination "djano won by resignation"]

1. d4 {[%clk 0:03:00.9]} 1... Nf6 {[%clk 0:02:57.5]} 2. Nf3 {[%clk 0:03:01.8]}
2... g6 {[%clk 0:02:55.1]} 3. Bf4 {[%clk 0:03:01.8]} 3... Bg7 {[%clk 0:02:53.1]}
4. h3 {[%clk 0:03:02.3]} 4... c5 {[%clk 0:02:51.1]} 5. c3 {[%clk 0:03:01.4]}
5... cxd4 {[%clk 0:02:41.8]} 6. cxd4 {[%clk 0:03:01.1]} 6... Nc6 {[%clk
0:02:40.8]} 7. e3 {[%clk 0:02:52]} 7... Ne4 {[%clk 0:02:38.2]} 8. Nbd2 {[%clk
0:02:48.3]} 8... Nxd2 {[%clk 0:02:33.6]} 9. Qxd2 {[%clk 0:02:49.2]} 9... d5
{[%clk 0:02:33.3]} 10. Bb5 {[%clk 0:02:35.3]} 10... Bd7 {[%clk 0:02:32.7]} 11.
O-O {[%clk 0:02:34.3]} 11... O-O {[%clk 0:02:32.2]} 12. Rac1 {[%clk 0:02:31.3]}
12... Qb6 {[%clk 0:02:31.4]} 13. Bxc6 {[%clk 0:02:26.5]} 13... Bxc6 {[%clk
0:02:29.5]} 14. Ne5 {[%clk 0:02:25.7]} 14... Bb5 {[%clk 0:02:28.2]} 15. Rfd1
{[%clk 0:02:25.1]} 15... Rfc8 {[%clk 0:02:25.9]} 16. Rxc8+ {[%clk 0:02:18.6]}
16... Rxc8 {[%clk 0:02:24.9]} 17. Rc1 {[%clk 0:02:19.2]} 17... Bc6 {[%clk
0:01:57.3]} 18. Rc3 {[%clk 0:02:08]} 18... Bf8 {[%clk 0:01:48.5]} 19. Qc1 {[%clk
0:02:03.6]} 19... a5 {[%clk 0:01:45.5]} 20. b3 {[%clk 0:01:53.4]} 20... f6
{[%clk 0:01:43.4]} 21. Nxc6 {[%clk 0:01:49.6]} 21... Rxc6 {[%clk 0:01:42.2]} 22.
Rxc6 {[%clk 0:01:48.1]} 22... bxc6 {[%clk 0:01:42.1]} 23. Qd1 {[%clk 0:01:42.1]}
23... e6 {[%clk 0:01:40.7]} 24. h4 {[%clk 0:01:38.5]} 24... h5 {[%clk
0:01:38.7]} 25. g4 {[%clk 0:01:37.2]} 25... hxg4 {[%clk 0:01:33.6]} 26. Qxg4
{[%clk 0:01:38.1]} 26... Kf7 {[%clk 0:01:33.8]} 27. h5 {[%clk 0:01:38.2]} 27...
g5 {[%clk 0:01:33.8]} 28. Bg3 {[%clk 0:01:37.2]} 28... Qb5 {[%clk 0:01:30]} 29.
e4 {[%clk 0:01:11.4]} 29... Qd3 {[%clk 0:01:24.8]} 30. e5 {[%clk 0:01:11.5]}
30... Bg7 {[%clk 0:01:12.9]} 31. exf6 {[%clk 0:01:09.3]} 31... Bxf6 {[%clk
0:01:13.1]} 32. Be5 {[%clk 0:00:53.8]} 32... Bxe5 {[%clk 0:00:53.1]} 33. dxe5
{[%clk 0:00:54.7]} 33... Qb1+ {[%clk 0:00:36.1]} 34. Kg2 {[%clk 0:00:47.4]}
34... Qc1 {[%clk 0:00:23.9]} 35. Qd4 {[%clk 0:00:33.2]} 35... c5 {[%clk
0:00:20.6]} 36. Qd3 {[%clk 0:00:33.4]} 36... c4 {[%clk 0:00:17.8]} 37. Qg6+
{[%clk 0:00:32.5]} 37... Ke7 {[%clk 0:00:17.3]} 38. h6 {[%clk 0:00:33]} 38...
Qf4 {[%clk 0:00:15.9]} 39. Qg7+ {[%clk 0:00:24.4]} 39... Kd8 {[%clk 0:00:15.6]}
40. Qf6+ {[%clk 0:00:20.5]} 1-0

[Event "*** Titled Tuesday Blitz"]
[Site "Chess.com"]
[Date "2020.05.19"]
[Round "3"]
[White "DanielDardha2005"]
[Black "adricalderon8"]
[Result "0-1"]
[WhiteElo "2639"]
[BlackElo "2433"]
[TimeControl "180+1"]
[EndTime "12:28:44 PDT"]
[Termination "adricalderon8 won by resignation"]

1. Nf3 {[%clk 0:02:58.8]} 1... Nf6 {[%clk 0:02:59.2]} 2. c4 {[%clk 0:02:58]}
2... g6 {[%clk 0:02:59.2]} 3. Nc3 {[%clk 0:02:57.2]} 3... Bg7 {[%clk 0:02:55.8]}
4. e4 {[%clk 0:02:57.2]} 4... c5 {[%clk 0:02:56.3]} 5. d4 {[%clk 0:02:56.6]}
5... cxd4 {[%clk 0:02:56.2]} 6. Nxd4 {[%clk 0:02:57.5]} 6... Nc6 {[%clk
0:02:56.7]} 7. Nc2 {[%clk 0:02:46.8]} 7... O-O {[%clk 0:02:55.3]} 8. Be2 {[%clk
0:02:43.4]} 8... d6 {[%clk 0:02:54.7]} 9. O-O {[%clk 0:02:43.6]} 9... a5 {[%clk
0:02:54.6]} 10. f3 {[%clk 0:02:41.4]} 10... a4 {[%clk 0:02:54.8]} 11. Be3 {[%clk
0:02:41.2]} 11... Be6 {[%clk 0:02:55]} 12. Rb1 {[%clk 0:02:40.7]} 12... Qa5
{[%clk 0:02:54.5]} 13. Qd2 {[%clk 0:02:39.6]} 13... Rfc8 {[%clk 0:02:54.2]} 14.
Rfc1 {[%clk 0:02:38.9]} 14... Nd7 {[%clk 0:02:30.5]} 15. Kh1 {[%clk 0:02:27.9]}
15... h5 {[%clk 0:02:25.7]} 16. Nd4 {[%clk 0:02:26.5]} 16... Nxd4 {[%clk
0:02:23.3]} 17. Bxd4 {[%clk 0:02:27.4]} 17... Bxc4 {[%clk 0:02:12.1]} 18. Bxg7
{[%clk 0:02:23.6]} 18... Kxg7 {[%clk 0:02:11]} 19. Qd4+ {[%clk 0:02:11.1]} 19...
Qe5 {[%clk 0:02:09.6]} 20. Qe3 {[%clk 0:02:06.7]} 20... Bxe2 {[%clk 0:02:07.5]}
21. Qxe2 {[%clk 0:02:04]} 21... a3 {[%clk 0:02:07.2]} 22. f4 {[%clk 0:01:57.3]}
22... Qxf4 {[%clk 0:02:02]} 23. Rf1 {[%clk 0:01:55.5]} 23... Qe5 {[%clk
0:01:59.7]} 24. Nd5 {[%clk 0:01:55.4]} 24... axb2 {[%clk 0:01:45.6]} 25. Rxb2
{[%clk 0:01:56.3]} 25... Nc5 {[%clk 0:01:46]} 26. Nb6 {[%clk 0:01:54.1]} 26...
Qxe4 {[%clk 0:01:44.1]} 27. Qxe4 {[%clk 0:01:50.8]} 27... Nxe4 {[%clk
0:01:44.4]} 28. Nxc8 {[%clk 0:01:50.8]} 28... Rxc8 {[%clk 0:01:44.6]} 29. Rxb7
{[%clk 0:01:51.4]} 29... Kf8 {[%clk 0:01:42.5]} 30. a4 {[%clk 0:01:50]} 30...
Ra8 {[%clk 0:01:39.4]} 31. Rb4 {[%clk 0:01:41.4]} 31... Nc5 {[%clk 0:01:37.7]}
32. Rbf4 {[%clk 0:01:39.3]} 32... f5 {[%clk 0:01:36.2]} 33. Ra1 {[%clk 0:01:39]}
33... Kf7 {[%clk 0:01:35.3]} 34. Rb4 {[%clk 0:01:37.4]} 34... Ra5 {[%clk
0:01:30.7]} 35. Kg1 {[%clk 0:01:31.6]} 35... e5 {[%clk 0:01:30.4]} 36. Kf1
{[%clk 0:01:30.9]} 36... Ke6 {[%clk 0:01:30.8]} 37. Ke2 {[%clk 0:01:30.7]} 37...
g5 {[%clk 0:01:28.1]} 38. Kd2 {[%clk 0:01:24.1]} 38... e4 {[%clk 0:01:20.9]} 39.
Kc3 {[%clk 0:01:18.7]} 39... f4 {[%clk 0:01:13.2]} 40. Rd4 {[%clk 0:01:10.7]}
40... e3 {[%clk 0:01:10.3]} 41. g3 {[%clk 0:00:59.1]} 41... Ke5 {[%clk
0:01:06.7]} 42. gxf4+ {[%clk 0:00:56.4]} 42... gxf4 {[%clk 0:01:05.7]} 43. Rad1
{[%clk 0:00:35.1]} 43... Ne4+ {[%clk 0:01:05.4]} 44. Kb4 {[%clk 0:00:32.2]}
44... Rc5 {[%clk 0:00:58.3]} 45. Rc4 {[%clk 0:00:11.6]} 45... Rxc4+ {[%clk
0:00:56.8]} 46. Kxc4 {[%clk 0:00:12.5]} 46... e2 {[%clk 0:00:56.7]} 47. Ra1
{[%clk 0:00:11.2]} 47... Nc5 {[%clk 0:00:52.1]} 48. Kc3 {[%clk 0:00:09.4]} 48...
f3 {[%clk 0:00:51.7]} 49. Kd2 {[%clk 0:00:09.6]} 49... Nb3+ {[%clk 0:00:52]} 50.
Ke1 {[%clk 0:00:09.8]} 50... Nxa1 {[%clk 0:00:52.2]} 51. a5 {[%clk 0:00:10.4]}
51... Nc2+ {[%clk 0:00:52.5]} 52. Kf2 {[%clk 0:00:09.9]} 52... e1=Q+ {[%clk
0:00:53]} 53. Kxf3 {[%clk 0:00:10.8]} 53... Qe3+ {[%clk 0:00:51.9]} 54. Kg2
{[%clk 0:00:10.9]} 54... Kf4 {[%clk 0:00:52.2]} 55. h4 {[%clk 0:00:10.5]} 0-1

[Event "*** Titled Tuesday Blitz"]
[Site "Chess.com"]
[Date "2020.05.19"]
[Round "3"]
[White "GMStefanova"]
[Black "Tacticusbd"]
[Result "1-0"]
[WhiteElo "2619"]
[BlackElo "2401"]
[TimeControl "180+1"]
[EndTime "12:28:46 PDT"]
[Termination "GMStefanova won on time"]

1. d4 {[%clk 0:03:00.9]} 1... e6 {[%clk 0:02:59]} 2. Nf3 {[%clk 0:03:00.2]} 2...
c5 {[%clk 0:02:57.3]} 3. e3 {[%clk 0:02:57]} 3... Nf6 {[%clk 0:02:55.8]} 4. Bd3
{[%clk 0:02:55.8]} 4... Be7 {[%clk 0:02:55.3]} 5. O-O {[%clk 0:02:55.1]} 5... b6
{[%clk 0:02:55.4]} 6. c4 {[%clk 0:02:51.5]} 6... Bb7 {[%clk 0:02:55.3]} 7. Nc3
{[%clk 0:02:51.6]} 7... cxd4 {[%clk 0:02:54.4]} 8. exd4 {[%clk 0:02:50.6]} 8...
d6 {[%clk 0:02:53.1]} 9. d5 {[%clk 0:02:50.4]} 9... e5 {[%clk 0:02:52.1]} 10.
Ng5 {[%clk 0:02:47.1]} 10... Nbd7 {[%clk 0:02:49.5]} 11. Qf3 {[%clk 0:02:38.4]}
11... a6 {[%clk 0:02:34]} 12. b3 {[%clk 0:02:26.9]} 12... Qc7 {[%clk 0:02:29.3]}
13. Qg3 {[%clk 0:02:23.5]} 13... b5 {[%clk 0:02:15.8]} 14. f4 {[%clk 0:02:16.8]}
14... bxc4 {[%clk 0:02:07.4]} 15. bxc4 {[%clk 0:02:16.2]} 15... g6 {[%clk
0:01:50.2]} 16. Kh1 {[%clk 0:02:13.4]} 16... Rg8 {[%clk 0:01:19.2]} 17. Rb1
{[%clk 0:02:00]} 17... h6 {[%clk 0:01:07.8]} 18. Nge4 {[%clk 0:01:55.2]} 18...
Nh5 {[%clk 0:00:52.4]} 19. Qh3 {[%clk 0:01:25.5]} 19... f5 {[%clk 0:00:50.7]}
20. Ng3 {[%clk 0:01:17.2]} 20... Nxg3+ {[%clk 0:00:48]} 21. hxg3 {[%clk
0:01:13.7]} 21... e4 {[%clk 0:00:47.8]} 22. Be2 {[%clk 0:01:11.6]} 22... Bf6
{[%clk 0:00:41]} 23. Na4 {[%clk 0:01:06.7]} 23... h5 {[%clk 0:00:40.1]} 24. Bxh5
{[%clk 0:00:59.7]} 24... gxh5 {[%clk 0:00:38.9]} 25. Qxf5 {[%clk 0:00:53.6]}
25... Bc8 {[%clk 0:00:19.8]} 26. Qxe4+ {[%clk 0:00:51.3]} 26... Kf8 {[%clk
0:00:18.3]} 27. f5 {[%clk 0:00:48.8]} 27... Ne5 {[%clk 0:00:17]} 28. c5 {[%clk
0:00:24.5]} 28... dxc5 {[%clk 0:00:14.5]} 29. d6 {[%clk 0:00:23]} 29... Qc6
{[%clk 0:00:14]} 30. Bh6+ {[%clk 0:00:17.9]} 30... Kf7 {[%clk 0:00:12.7]} 31.
Qf4 {[%clk 0:00:15.3]} 31... Rg4 {[%clk 0:00:10.5]} 32. Qd2 {[%clk 0:00:14]}
32... Rxa4 {[%clk 0:00:03.5]} 33. Bg5 {[%clk 0:00:12.5]} 33... Bb7 {[%clk
0:00:02.4]} 34. Bxf6 {[%clk 0:00:11.9]} 1-0